fUSD/lending_fUSD_20260217
["ID","MTS","AMOUNT","RATE_DAILY","PERIOD"]
[405797523,1771320648175,-500.0,0.00013698,2]
[405797524,1771320648184,-500.0,0.00013698,2]
[405797525,1771320648193,-500.0,0.00013698,2]
[405797526,1771320648203,-500.0,0.00013698,2]
[405797527,1771320648212,-500.0,0.00013698,2]
[405797528,1771320648221,-500.0,0.00013698,2]
[405797529,1771320648230,-500.0,0.00013698,2]
[405797530,1771320648239,-500.0,0.00013698,2]
[405797531,1771320648248,-500.0,0.00013698,2]
[405797532,1771320648258,-500.0,0.00013698,2]
[405797533,1771320648267,-500.0,0.00013698,2]
[405797534,1771320648279,-500.0,0.00013698,2]
[405797535,1771320648290,-500.0,0.00013698,2]
[405797536,1771320648302,-500.0,0.00013698,2]
[405797537,1771320648311,-500.0,0.00013698,2]
[405797538,1771320648322,-500.0,0.00013698,2]
[405797539,1771320648333,-197.6651859,0.00013698,2]
[405797540,1771320648343,-151.0,0.00013698,2]
[405797541,1771320648353,-1783.60803,0.00013698,2]
[405797542,1771320648364,-1783.60803,0.00013698,2]
[405797543,1771320648376,-1783.60803,0.00013698,2]
[405797544,1771320648387,-1783.60803,0.00013698,2]
[405797545,1771320648399,-167.064397,0.00013698,2]
[405797546,1771320648409,-167.064397,0.00013698,2]
[405797547,1771320648421,-167.064397,0.00013698,2]
[405797548,1771320648432,-167.064397,0.00013698,2]
[405797549,1771320648444,-1000.0,0.00013698,2]
[405797550,1771320648455,-1069.171485,0.00013698,2]
[405797551,1771320648466,-200.0,0.00013699,2]
[405797552,1771320648477,-712.99,0.00013699,2]
[405797553,1771320648488,-704.93,0.00013699,2]
[405797554,1771320648498,-151.0,0.00013699,2]
[405797555,1771320648508,-157.404271,0.00013699,2]
[405797556,1771320648517,-157.404271,0.00013699,2]
[405797557,1771320648526,-157.404271,0.00013699,2]
[405797558,1771320648536,-157.404271,0.00013699,2]
[405797559,1771320648546,-151.02878078,0.00013699,2]
[405797560,1771320648556,-8685.08379471,0.00013756,2]
[405797561,1771320648566,-1829.0,0.0001382,2]
[405797562,1771320648575,-915.21,0.00013876,2]
[405797563,1771320648585,-846.3153877,0.00014067,2]
[405797564,1771320648596,-5300.13656815,0.00014149,2]
[405797565,1771320648607,-208.8,0.00014357,2]
[405797566,1771320648617,-704.93,0.00014384,2]
[405797567,1771320648627,-7658.84032483,0.0001439,2]
[405797568,1771320648638,-361.59516871,0.00014434,2]
[405797569,1771320648648,-464.75008909,0.0001445,2]
[405797570,1771320648660,-168.19115038,0.00014464,2]
[405797571,1771320648673,-599.60298507,0.00014465,2]
[405797572,1771320648683,-747.8093786,0.00014465,2]
[405797573,1771320648693,-151.0,0.00014634,2]
[405797574,1771320648703,-151.0,0.00014634,2]
[405797575,1771320648712,-151.0,0.00014634,2]
[405797576,1771320648722,-173.57638878,0.00014674,2]
[405797577,1771320648731,-160.0,0.00014674,2]
[405797578,1771320648743,-9035.0,0.00014679,2]
[405797579,1771320648754,-1576.69293966,0.00014791,2]
[405797580,1771320648765,-8685.08379471,0.00014792,2]
[405797581,1771320648778,-208.8,0.00014897,2]
[405797582,1771320648790,-2055.50045313,0.00015,2]
[405797583,1771320648805,-8002.23365242,0.00015,2]
[405797584,1771320648817,-418.83903334,0.00015,2]
[405797585,1771320648828,-250.0,0.00015,2]
[405797586,1771320648838,-306.51422453,0.00015,2]
[405797587,1771320648848,-27589.07011248,0.00015047,2]
[405797588,1771320648859,-776.66,0.00015068,2]
[405797589,1771320648869,-704.93,0.00015068,2]
[405797590,1771320648879,-457.741827,0.00015068,2]
[405797591,1771320648890,-457.741827,0.00015068,2]
[405797592,1771320648899,-457.741827,0.00015068,2]
[405797593,1771320648910,-457.741827,0.00015068,2]
[405797594,1771320648921,-1517.64,0.000153,2]
[405797595,1771320648931,-832.04,0.00015342,2]
[405797596,1771320648941,-150.0,0.00015376,7]
[405797597,1771320648951,-5300.13656815,0.00015399,2]
[405797598,1771320648961,-509.61038486,0.000154,2]
[405797599,1771320648970,-208.79732778,0.00015436,2]
[405797600,1771320648980,-464.75008909,0.000156,2]
[405797601,1771320648990,-583.69347785,0.0001565,7]
[405797602,1771320649000,-915.21,0.00015738,2]
[405797603,1771320649011,-704.93,0.00015753,2]
[405797604,1771320649021,-2245.73805852,0.00015807,2]
[405797605,1771320649031,-8685.08379471,0.00015828,2]
[405797606,1771320649041,-484.11558281,0.00015926,2]
[405797607,1771320649052,-5000.0,0.0001596,2]
[405797608,1771320649062,-160.57318335,0.00015975,2]
[405797609,1771320649072,-27589.07011248,0.00015998,2]
[405797610,1771320649081,-276.734435,0.00016,2]
[405797611,1771320649091,-7910.59,0.00016116,2]
[405797612,1771320649101,-12649.0,0.00016147,2]
[405797613,1771320649111,-361.59516871,0.00016167,2]
[405797614,1771320649121,-5000.00588409,0.000162,5]
[405797615,1771320649130,-6203.302944,0.00016301,7]
[405797616,1771320649141,-484.11558281,0.00016325,2]
[405797617,1771320649150,-200.0,0.0001634,2]
[405797618,1771320649160,-704.93,0.00016438,2]
[405797619,1771320649170,-151.0,0.00016438,2]
[405797620,1771320649179,-151.0,0.00016438,2]
[405797621,1771320649189,-5973.0,0.00016471,2]
[405797622,1771320649199,-2452.0,0.00016471,2]
[405797623,1771320649208,-14504.046505,0.00016481,7]
[405797624,1771320649218,-5300.13656815,0.0001665,2]
[405797625,1771320649228,-159.42,0.00016712,2]
[405797626,1771320649238,-464.75008909,0.0001675,2]
[405797627,1771320649247,-3701.0,0.000168,2]
[405797628,1771320649258,-9917.64356668,0.00016836,2]
[405797629,1771320649268,-8685.08379471,0.00016864,2]
[405797630,1771320649279,-1563.90389464,0.000169,2]
[405797631,1771320649294,-911.84928221,0.000169,2]
[405797632,1771320649303,-1083.79247438,0.000169,2]
[405797633,1771320649313,-27589.07011248,0.00016949,2]
[405797634,1771320649323,-151.0,0.00016997,2]
[405797635,1771320649333,-161.76553767,0.00016999,2]
[405797636,1771320649342,-699.91,0.00016999,2]
[405797637,1771320649354,-699.91,0.00016999,2]
[405797638,1771320649364,-699.91,0.00016999,2]
[405797639,1771320649374,-500.0,0.00016999,2]
[405797640,1771320649383,-500.0,0.00016999,2]
[405797641,1771320649394,-500.0,0.00016999,2]
[405797642,1771320649405,-500.0,0.00016999,2]
[405797643,1771320649415,-500.0,0.00016999,2]
[405797644,1771320649426,-500.0,0.00016999,2]
[405797645,1771320649436,-1015.72,0.00016999,2]
[405797646,1771320649447,-1015.72,0.00016999,2]
[405797647,1771320649456,-1015.72,0.00016999,2]
[405797648,1771320649466,-500.0,0.00016999,2]
[405797649,1771320649475,-500.0,0.00016999,2]
[405797650,1771320649486,-505.24249427,0.00016999,2]
[405797651,1771320649496,-915.21,0.00016999,2]
[405797652,1771320649507,-915.21,0.00016999,2]
[405797653,1771320649518,-915.21,0.00016999,2]
[405797654,1771320649529,-915.21,0.00016999,2]
[405797655,1771320649539,-915.21,0.00016999,2]
[405797656,1771320649550,-915.2263384,0.00016999,2]
[405797657,1771320649560,-722096.52522804,0.00017,2]
[405797658,1771320649571,-300.0,0.00017,2]
[405797659,1771320649581,-151.0,0.00017,2]
[405797660,1771320649593,-151.0,0.00017,2]
[405797661,1771320649603,-289.007678,0.00017,2]
[405797662,1771320649613,-151.0,0.00017,2]
[405797663,1771320649623,-157.404271,0.00017,2]
[405797664,1771320649632,-157.404271,0.00017,2]
[405797665,1771320649643,-157.404271,0.00017,2]
[405797666,1771320649656,-157.404271,0.00017,2]
[405797667,1771320649666,-1783.60803,0.00017,2]
[405797668,1771320649676,-1783.60803,0.00017,2]
[405797669,1771320649686,-1783.60803,0.00017,2]
[405797670,1771320649696,-1783.60803,0.00017,2]
[405797671,1771320649707,-167.064397,0.00017,2]
[405797672,1771320649718,-167.064397,0.00017,2]
[405797673,1771320649728,-167.064397,0.00017,2]
[405797674,1771320649738,-167.064397,0.00017,2]
[405797675,1771320649750,-457.741827,0.00017,2]
[405797676,1771320649760,-457.741827,0.00017,2]
[405797677,1771320649771,-457.741827,0.00017,2]
[405797678,1771320649781,-457.741827,0.00017,2]
[405797679,1771320649792,-151.000017,0.00017,2]
[405797680,1771320649802,-153.344252,0.00017,2]
[405797681,1771320649812,-297.077011,0.00017159,7]
[405797682,1771320649823,-621.78829552,0.00017204,2]
[405797683,1771320649834,-775.47832561,0.00017204,2]
[405797684,1771320649843,-350.0,0.00017208,2]
[405797685,1771320649853,-15296.93137855,0.00017277,2]
[405797686,1771320649863,-350.0,0.00017356,2]
[405797687,1771320649873,-350.0,0.00017384,2]
[405797688,1771320649883,-1563.90389462,0.000174,2]
[405797689,1771320649895,-911.84928221,0.000174,3]
[405797690,1771320649905,-1083.79247437,0.000174,2]
[405797691,1771320649915,-150.248,0.00017449,2]
[405797692,1771320649925,-1302.253,0.00017449,2]
[405797693,1771320649935,-1224.627,0.00017449,2]
[405797694,1771320649945,-1079.86156513,0.00017551,2]
[405797695,1771320649956,-1138.03368001,0.00017551,2]
[405797696,1771320649966,-1008.6713965,0.00017551,2]
[405797697,1771320649976,-1134.78025801,0.00017551,2]
[405797698,1771320649986,-1048.24582089,0.00017551,2]
[405797699,1771320649996,-1039.59533143,0.00017551,2]
[405797700,1771320650007,-1028.48711917,0.00017551,2]
[405797701,1771320650018,-1109.51798623,0.00017551,2]
[405797702,1771320650027,-328.87800463,0.000176,3]
[405797703,1771320650038,-258.29145491,0.00017606,2]
[405797704,1771320650049,-1094.33432331,0.0001764,2]
[405797705,1771320650059,-1145.35720165,0.0001764,2]
[405797706,1771320650070,-1088.0893946,0.0001764,2]
[405797707,1771320650080,-1032.15907642,0.0001764,2]
[405797708,1771320650092,-1017.70748764,0.0001764,2]
[405797709,1771320650102,-1023.75266207,0.0001764,2]
[405797710,1771320650112,-1125.74739325,0.0001764,2]
[405797711,1771320650122,-1097.98511384,0.0001764,2]
[405797712,1771320650133,-1123.8763179,0.0001764,2]
[405797713,1771320650143,-1149.81694247,0.0001764,2]
[405797714,1771320650153,-1027.49475167,0.0001764,2]
[405797715,1771320650163,-1060.59164633,0.0001764,2]
[405797716,1771320650173,-1025.77030089,0.0001764,2]
[405797717,1771320650183,-1238.69032257,0.0001764,2]
[405797718,1771320650194,-6001.36620396,0.0001764,2]
[405797719,1771320650204,-784.32813885,0.000177,2]
[405797720,1771320650214,-403.0,0.000177,5]
[405797721,1771320650224,-168.0,0.00017719,2]
[405797722,1771320650234,-2004.41635969,0.0001773,2]
[405797723,1771320650244,-9253.0,0.00017761,2]
[405797724,1771320650254,-350.0,0.00017797,2]
[405797725,1771320650264,-444.64,0.00017808,2]
[405797726,1771320650277,-250.0,0.00017808,20]
[405797727,1771320650287,-250.0,0.00017808,20]
[405797728,1771320650297,-250.0,0.00017808,20]
[405797729,1771320650308,-250.0,0.00017808,20]
[405797730,1771320650319,-250.0,0.00017808,20]
[405797731,1771320650331,-250.0,0.00017808,20]
[405797732,1771320650341,-250.0,0.00017808,20]
[405797733,1771320650352,-250.0,0.00017808,20]
[405797734,1771320650362,-250.0,0.00017808,20]
[405797735,1771320650372,-250.0,0.00017808,20]
[405797736,1771320650382,-250.0,0.00017808,20]
[405797737,1771320650391,-250.0,0.00017808,20]
[405797738,1771320650402,-250.0,0.00017808,20]
[405797739,1771320650412,-250.0,0.00017808,20]
[405797740,1771320650422,-250.0,0.00017808,20]
[405797741,1771320650432,-211.316222,0.00017808,20]
[405797742,1771320650442,-151.192731,0.00017808,2]
[405797743,1771320650452,-151.192731,0.00017808,2]
[405797744,1771320650461,-151.192731,0.00017808,2]
[405797745,1771320650471,-151.192731,0.00017808,2]
[405797746,1771320650481,-151.192731,0.00017808,2]
[405797747,1771320650492,-151.192731,0.00017808,2]
[405797748,1771320650502,-151.192731,0.00017808,2]
[405797749,1771320650513,-151.192731,0.00017808,2]
[405797750,1771320650524,-800.0,0.00017808,2]
[405797751,1771320650534,-200.0,0.00017855,2]
[405797752,1771320650544,-200.0,0.00017856,2]
[405797753,1771320650555,-200.0,0.00017856,2]
[405797754,1771320650565,-1004.12697823,0.0001786,2]
[405797755,1771320650576,-699.91,0.00017899,2]
[405797756,1771320650586,-699.91,0.00017899,2]
[405797757,1771320650596,-699.91,0.00017899,2]
[405797758,1771320650606,-699.91,0.00017899,2]
[405797759,1771320650616,-700.13619195,0.00017899,2]
[405797760,1771320650857,-500.0,0.00017899,2]
[405797761,1771320650868,-500.0,0.00017899,2]
[405797762,1771320650878,-500.0,0.00017899,2]
[405797763,1771320650887,-500.0,0.00017899,2]
[405797764,1771320650897,-388.47570654,0.00017899,2]
[405797765,1771320650907,-1015.72,0.00017899,2]
[405797766,1771320650918,-1015.72,0.00017899,2]
[405797767,1771320650928,-1015.72,0.00017899,2]
[405797768,1771320650938,-1015.72,0.00017899,2]
[405797769,1771320650947,-1015.84,0.00017899,2]
[405797770,1771320650956,-2555.4951848,0.000179,5]
[405797771,1771320650965,-173.57638878,0.000179,3]
[405797772,1771320650975,-500.0,0.000179,2]
[405797773,1771320650984,-500.0,0.000179,2]
[405797774,1771320650994,-500.0,0.000179,2]
[405797775,1771320651003,-500.0,0.000179,2]
[405797776,1771320651012,-5008.1800114,0.000179,3]
[405797777,1771320651021,-361.59516871,0.000179,2]
[405797778,1771320651032,-27589.07011248,0.000179,2]
[405797779,1771320651042,-8685.08379471,0.000179,2]
[405797780,1771320651051,-5300.13656815,0.000179,2]
[405797781,1771320651060,-464.75008909,0.000179,2]
[405797782,1771320651070,-1563.90389462,0.000179,2]
[405797783,1771320651079,-911.84928221,0.000179,3]
[405797784,1771320651089,-1083.79247437,0.000179,2]
[405797785,1771320651099,-1576.69293966,0.000179,2]
[405797786,1771320651109,-160.57318335,0.00017972,2]
[405797787,1771320651118,-504.09468333,0.00017973,2]
[405797788,1771320651128,-616.27940406,0.00017973,2]
[405797789,1771320651137,-500.0,0.00017973,2]
[405797790,1771320651147,-573.45760824,0.00017973,2]
[405797791,1771320651158,-500.0,0.00017973,2]
[405797792,1771320651167,-503.2366262,0.00017973,2]
[405797793,1771320651177,-501.35605949,0.00017973,2]
[405797794,1771320651188,-500.99019732,0.00017973,2]
[405797795,1771320651197,-501.78719611,0.00017973,2]
[405797796,1771320651207,-509.85751715,0.00017973,2]
[405797797,1771320651216,-508.22453373,0.00017973,2]
[405797798,1771320651226,-501.06962982,0.00017973,2]
[405797799,1771320651236,-502.37992604,0.00017973,2]
[405797800,1771320651246,-588.14229004,0.00017973,2]
[405797801,1771320651257,-500.67013055,0.00017973,2]
[405797802,1771320651267,-163.14629325,0.00017973,2]
[405797803,1771320651276,-501.59728131,0.00017973,2]
[405797804,1771320651290,-168.45138887,0.00017973,2]
[405797805,1771320651301,-500.0,0.00017973,2]
[405797806,1771320651310,-310.16973746,0.00017973,2]
[405797807,1771320651319,-436.04334629,0.00017973,2]
[405797808,1771320651330,-504.49684223,0.00017973,2]
[405797809,1771320651341,-500.0,0.00017973,2]
[405797810,1771320651350,-500.0,0.00017973,2]
[405797811,1771320651361,-194.4116551,0.00017973,2]
[405797812,1771320651372,-500.0,0.00017973,2]
[405797813,1771320651383,-504.66274009,0.00017973,2]
[405797814,1771320651395,-502.80271569,0.00017973,2]
[405797815,1771320651407,-500.0,0.00017973,2]
[405797816,1771320651416,-500.60659592,0.00017973,2]
[405797817,1771320651427,-885.17558433,0.0001799,2]
[405797818,1771320651445,-885.17558433,0.0001799,2]
[405797819,1771320651455,-500.0,0.00017999,2]
[405797820,1771320651465,-511.5660924,0.00017999,2]
[405797821,1771320651475,-300.0,0.00017999,2]
[405797822,1771320651484,-666.0,0.00017999,2]
[405797823,1771320651494,-666.0,0.00017999,2]
[405797824,1771320651505,-300.0,0.00017999,2]
[405797825,1771320651515,-300.0,0.00017999,2]
[405797826,1771320651525,-150.0,0.00017999,2]
[405797827,1771320651535,-150.0,0.00017999,2]
[405797828,1771320651544,-269.76817122,0.00017999,2]
[405797829,1771320651554,-23598.10797836,0.00017999,2]
[405797830,1771320651564,-302160.5163726,0.00018,2]
[405797831,1771320652336,-695.06746675,0.00016471,2]
[405797832,1771320652675,-189.04593549,0.0001007,2]
[405797833,1771320652685,-151.0,0.00010124,2]
[405797834,1771320652694,-152.85835458,0.00016,2]
[405797835,1771320652705,-152.85835458,0.000161,2]
[405797836,1771320652717,-468.93253325,0.00016471,2]
[405797837,1771320652733,-3066.66396119,0.000178,2]
[405797838,1771320652746,-3066.66396119,0.0001785,2]
[405797839,1771320652755,-4192.20795967,0.00018,2]
[405797847,1771320899474,150000.0,0.00018,30]
[405797856,1771321286374,-150.0,0.00013839,7]
[405797857,1771321288440,-150.0,0.00013839,7]
[405797858,1771321353729,-150.0,0.00013839,7]
[405797859,1771321357817,-150.0,0.00013839,7]
[405797860,1771321361165,-150.0,0.00013839,7]
[405797861,1771321362268,-150.0,0.00013839,7]
[405797862,1771321438433,450.93474927,0.00018,30]
[405797863,1771321460260,150.0,0.00011143,7]
[405797916,1771321832670,-277.271877,8.484e-05,2]
[405797917,1771321832685,-19.77598207,8.504e-05,2]
[405797918,1771321832700,-230.22401793,8.504e-05,2]
[405797919,1771321832714,-166.66,8.524e-05,2]
[405797920,1771321832727,-300.0,8.548e-05,2]
[405797921,1771321832741,-150.0,8.548e-05,2]
[405797922,1771321832755,-176.43552035,8.548e-05,2]
[405797923,1771321832775,-123.56447965,8.548e-05,2]
[405797924,1771321832788,-300.0,8.548e-05,2]
[405797925,1771321832799,-582.58999974,8.548e-05,2]
[405797926,1771321832815,-617.41000026,8.548e-05,2]
[405797927,1771321832827,-5253.89892903,8.549e-05,2]
[405797928,1771321832841,-2548.73865149,8.549e-05,2]
[405797929,1771321832855,-2820.8487483,8.549e-05,2]
[405797930,1771321832890,-397.84647269,8.549e-05,2]
[405797931,1771321832904,-729.0,8.549e-05,2]
[405797932,1771321832927,-1678.09438079,8.549e-05,2]
[405797933,1771321832942,-387.11639996,8.549e-05,2]
[405797934,1771321832956,-2898.9649607,8.549e-05,2]
[405797935,1771321832984,-2632.9638018,8.549e-05,2]
[405797936,1771321838290,-3480652.52765524,8.549e-05,2]
[405797937,1771321838302,-2797.490378,8.554e-05,2]
[405797938,1771321838312,-2862.21969712,8.554e-05,2]
[405797939,1771321838322,-250.0,8.554e-05,2]
[405797940,1771321838332,-1198.61459084,8.566e-05,2]
[405797941,1771321838342,-2500.0,8.631e-05,2]
[405797942,1771321838353,-600.0,8.648e-05,2]
[405797943,1771321838362,-150.0,8.649e-05,2]
[405797945,1771321838988,-156.052717,8.649e-05,2]
[405797946,1771321839021,-162.105434,8.649e-05,2]
[405797947,1771321839044,-168.158151,8.649e-05,2]
[405797948,1771321839054,-174.210868,8.649e-05,2]
[405797949,1771321839063,-180.263585,8.649e-05,2]
[405797950,1771321839072,-186.316302,8.649e-05,2]
[405797951,1771321839081,-192.369019,8.649e-05,2]
[405797952,1771321839094,-198.421736,8.649e-05,2]
[405797953,1771321839103,-204.474453,8.649e-05,2]
[405797954,1771321839113,-150.0,8.649e-05,2]
[405797955,1771321839122,-258.846083,8.649e-05,2]
[405797956,1771321839131,-367.692166,8.649e-05,2]
[405797957,1771321839140,-476.538249,8.649e-05,2]
[405797958,1771321839150,-585.384333,8.649e-05,2]
[405797959,1771321839159,-694.230416,8.649e-05,2]
[405797960,1771321839168,-803.076499,8.649e-05,2]
[405797961,1771321839178,-911.922583,8.649e-05,2]
[405797962,1771321839186,-1020.768666,8.649e-05,2]
[405797963,1771321839196,-1129.614749,8.649e-05,2]
[405797964,1771321839205,-229.0,8.7e-05,2]
[405797965,1771321839215,-500.0,8.73e-05,2]
[405797966,1771321839225,-874.47822608,8.73e-05,2]
[405797967,1771321839235,-874.47822608,8.73e-05,2]
[405797968,1771321839244,-874.47822608,8.73e-05,2]
[405797969,1771321839254,-874.47822608,8.73e-05,2]
[405797970,1771321839263,-874.47822608,8.73e-05,2]
[405797971,1771321839272,-874.47822608,8.73e-05,2]
[405797972,1771321839282,-874.47822608,8.73e-05,2]
[405797973,1771321839295,-874.47822608,8.73e-05,2]
[405797974,1771321839304,-874.47822608,8.73e-05,2]
[405797975,1771321839315,-874.47822608,8.73e-05,2]
[405797976,1771321839324,-874.47822608,8.73e-05,2]
[405797977,1771321839334,-874.47822608,8.73e-05,2]
[405797978,1771321839343,-874.47822608,8.73e-05,2]
[405797979,1771321839353,-874.47822608,8.73e-05,2]
[405797980,1771321839362,-874.47822608,8.73e-05,2]
[405797981,1771321839372,-874.47822608,8.73e-05,2]
[405797982,1771321839381,-874.47822608,8.73e-05,2]
[405797983,1771321839391,-874.47822608,8.73e-05,2]
[405797984,1771321839400,-874.47822608,8.73e-05,2]
[405797985,1771321839410,-874.47822608,8.73e-05,2]
[405797986,1771321839420,-874.47822608,8.73e-05,2]
[405797987,1771321839430,-874.47822608,8.73e-05,2]
[405797988,1771321839439,-874.47822608,8.73e-05,2]
[405797989,1771321839448,-874.47822608,8.73e-05,2]
[405797990,1771321839458,-874.47822608,8.73e-05,2]
[405797991,1771321839468,-874.47822608,8.73e-05,2]
[405797992,1771321839478,-874.47822608,8.73e-05,2]
[405797993,1771321839487,-874.47822608,8.73e-05,2]
[405797994,1771321839497,-874.47822608,8.73e-05,2]
[405797995,1771321839506,-874.47822608,8.73e-05,2]
[405797996,1771321839516,-874.47822608,8.73e-05,2]
[405797997,1771321839525,-874.47822608,8.73e-05,2]
[405797998,1771321839534,-874.47822608,8.73e-05,2]
[405797999,1771321839544,-874.47822608,8.73e-05,2]
[405798000,1771321839554,-874.47822608,8.73e-05,2]
[405798001,1771321839563,-874.47822608,8.73e-05,2]
[405798002,1771321839572,-874.47822608,8.73e-05,2]
[405798003,1771321839581,-874.47822608,8.73e-05,2]
[405798004,1771321839590,-874.47822608,8.73e-05,2]
[405798005,1771321839603,-874.47822608,8.73e-05,2]
[405798006,1771321839612,-874.47822608,8.73e-05,2]
[405798007,1771321839622,-874.47822608,8.73e-05,2]
[405798008,1771321839632,-874.47822608,8.73e-05,2]
[405798009,1771321839643,-874.47822608,8.73e-05,2]
[405798010,1771321839652,-874.47822608,8.73e-05,2]
[405798011,1771321839662,-874.47822608,8.73e-05,2]
[405798012,1771321839672,-874.47822608,8.73e-05,2]
[405798013,1771321839681,-874.47822608,8.73e-05,2]
[405798014,1771321839691,-874.47822608,8.73e-05,2]
[405798015,1771321839701,-874.47822608,8.73e-05,2]
[405798016,1771321839711,-874.47822608,8.73e-05,2]
[405798017,1771321839720,-874.47822608,8.73e-05,2]
[405798018,1771321839731,-874.47822608,8.73e-05,2]
[405798019,1771321839740,-874.47822608,8.73e-05,2]
[405798020,1771321839750,-874.47822608,8.73e-05,2]
[405798021,1771321839760,-874.47822608,8.73e-05,2]
[405798022,1771321839770,-874.47822608,8.73e-05,2]
[405798023,1771321839786,-874.47822608,8.73e-05,2]
[405798024,1771321839796,-913.3572811,8.73e-05,2]
[405798025,1771321839806,-913.3572811,8.73e-05,2]
[405798026,1771321839815,-913.3572811,8.73e-05,2]
[405798027,1771321839825,-913.3572811,8.73e-05,2]
[405798028,1771321839834,-913.3572811,8.73e-05,2]
[405798029,1771321839844,-913.3572811,8.73e-05,2]
[405798030,1771321839853,-913.3572811,8.73e-05,2]
[405798031,1771321839863,-913.3572811,8.73e-05,2]
[405798032,1771321839873,-913.3572811,8.73e-05,2]
[405798033,1771321839882,-913.3572811,8.73e-05,2]
[405798034,1771321839890,-913.3572811,8.73e-05,2]
[405798035,1771321839900,-913.3572811,8.73e-05,2]
[405798036,1771321839910,-913.3572811,8.73e-05,2]
[405798037,1771321839919,-913.3572811,8.73e-05,2]
[405798038,1771321839927,-913.3572811,8.73e-05,2]
[405798039,1771321839936,-913.3572811,8.73e-05,2]
[405798040,1771321839945,-913.3572811,8.73e-05,2]
[405798041,1771321839954,-913.3572811,8.73e-05,2]
[405798042,1771321839964,-913.3572811,8.73e-05,2]
[405798043,1771321839973,-913.3572811,8.73e-05,2]
[405798044,1771321839983,-913.3572811,8.73e-05,2]
[405798045,1771321839992,-913.3572811,8.73e-05,2]
[405798046,1771321840002,-913.3572811,8.73e-05,2]
[405798047,1771321840011,-913.3572811,8.73e-05,2]
[405798048,1771321840020,-913.3572811,8.73e-05,2]
[405798049,1771321840029,-913.3572811,8.73e-05,2]
[405798050,1771321840039,-913.3572811,8.73e-05,2]
[405798051,1771321840048,-913.3572811,8.73e-05,2]
[405798052,1771321840058,-913.3572811,8.73e-05,2]
[405798053,1771321840067,-913.3572811,8.73e-05,2]
[405798054,1771321840076,-913.3572811,8.73e-05,2]
[405798055,1771321840086,-500.0,8.731e-05,2]
[405798056,1771321840095,-7609.4532204,8.731e-05,2]
[405798057,1771321840105,-166.66,8.805e-05,2]
[405798058,1771321840115,-9999.99,8.828e-05,2]
[405798059,1771321840124,-150.99,8.828e-05,2]
[405798060,1771321840134,-999.99,8.828e-05,2]
[405798061,1771321840143,-9999.99,8.828e-05,2]
[405798062,1771321840152,-299.99,8.828e-05,2]
[405798063,1771321840161,-150.99,8.828e-05,2]
[405798064,1771321840171,-229.0,8.83e-05,2]
[405798065,1771321840180,-32850.4601,8.931e-05,2]
[405798066,1771321840189,-200.0,8.969e-05,2]
[405798067,1771321840199,-500.0,9.004e-05,2]
[405798068,1771321840208,-166.66,9.087e-05,2]
[405798069,1771321840218,-229.0,9.104e-05,2]
[405798070,1771321840228,-150.0,9.138e-05,2]
[405798071,1771321840238,-500.0,9.138e-05,2]
[405798072,1771321840247,-3358.0,9.138e-05,2]
[405798073,1771321840256,-500.0,9.138e-05,2]
[405798074,1771321840266,-500.0,9.138e-05,2]
[405798075,1771321840276,-237.28842339,9.138e-05,2]
[405798076,1771321840285,-500.0,9.138e-05,2]
[405798077,1771321840295,-500.0,9.138e-05,2]
[405798078,1771321840304,-500.0,9.138e-05,2]
[405798079,1771321840314,-150.0,9.138e-05,2]
[405798080,1771321840323,-150.0,9.138e-05,2]
[405798081,1771321840333,-500.0,9.138e-05,2]
[405798082,1771321840342,-500.0,9.138e-05,2]
[405798083,1771321840352,-445.0,9.138e-05,2]
[405798084,1771321840362,-500.0,9.138e-05,2]
[405798085,1771321840372,-150.0,9.138e-05,2]
[405798086,1771321840381,-150.0,9.138e-05,2]
[405798087,1771321840390,-150.0,9.138e-05,2]
[405798088,1771321840400,-500.0,9.138e-05,2]
[405798089,1771321840410,-500.0,9.138e-05,2]
[405798090,1771321840420,-500.0,9.138e-05,2]